[Event "Titled Tuesday Blitz February 07 Early 2023"]
[White "Levitan, Caleb Levi"]
[Black "Berezin, Viktor"]
[WhiteFideId "14332620"]
[BlackFideId "14107872"]
[WhiteElo "2129"]
[BlackElo "2307"]
[Result "0-1"]
[Round "07"]
[TimeControl "180+2"]
[Date "2023.02.07"]
[WhiteClock "0:00:02"]
[BlackClock "0:00:08"]

1. e4 {[%clk 0:02:59]}  g6 {[%clk 0:02:59]} 2. d4 {[%clk 0:02:59]}  Bg7 {[%clk 0:02:58]} 3. Nc3 {[%clk 0:02:58]}  d6 {[%clk 0:02:57]} 4. Bf4 {[%clk 0:02:58]}  Nf6 {[%clk 0:02:56]} 5. Qd2 {[%clk 0:02:58]}  O-O {[%clk 0:02:57]} 6. O-O-O {[%clk 0:02:53]}  c6 {[%clk 0:02:56]} 7. Bh6 {[%clk 0:02:50]}  Qa5 {[%clk 0:02:53]} 8. Kb1 {[%clk 0:02:44]}  b5 {[%clk 0:02:53]} 9. f3 {[%clk 0:02:41]}  b4 {[%clk 0:02:52]} 10. Nce2 {[%clk 0:02:40]}  e5 {[%clk 0:02:53]} 11. h4 {[%clk 0:02:33]}  c5 {[%clk 0:02:52]} 12. dxe5 {[%clk 0:02:07]}  dxe5 {[%clk 0:02:53]} 13. h5 {[%clk 0:02:06]}  Be6 {[%clk 0:02:45]} 14. Nc1 {[%clk 0:01:58]}  c4 {[%clk 0:02:44]} 15. hxg6 {[%clk 0:01:52]}  fxg6 {[%clk 0:02:43]} 16. Bxg7 {[%clk 0:01:45]}  Kxg7 {[%clk 0:02:44]} 17. Qh6+ {[%clk 0:01:33]}  Kg8 {[%clk 0:02:31]} 18. Rd6 {[%clk 0:01:07]}  Re8 {[%clk 0:02:08]} 19. Qh4 {[%clk 0:00:54]}  Nbd7 {[%clk 0:02:01]} 20. Rxe6 {[%clk 0:00:40]}  Rxe6 {[%clk 0:01:59]} 21. Bxc4 {[%clk 0:00:41]}  Re8 {[%clk 0:01:54]} 22. Bxe6+ {[%clk 0:00:40]}  Rxe6 {[%clk 0:01:55]} 23. Nh3 {[%clk 0:00:32]}  Rd6 {[%clk 0:01:46]} 24. Ng5 {[%clk 0:00:29]}  Nf8 {[%clk 0:01:46]} 25. Qg3 {[%clk 0:00:17]}  Qb5 {[%clk 0:01:24]} 26. f4 {[%clk 0:00:15]}  Nh5 {[%clk 0:01:18]} 27. Rxh5 {[%clk 0:00:13]}  gxh5 {[%clk 0:01:10]} 28. Ne6+ {[%clk 0:00:12]}  Ng6 {[%clk 0:00:58]} 29. f5 {[%clk 0:00:12]}  Qe8 {[%clk 0:00:29]} 30. Nc7 {[%clk 0:00:07]}  Qd7 {[%clk 0:00:21]} 31. Nb5 {[%clk 0:00:06]}  Rd1 {[%clk 0:00:19]} 32. fxg6 {[%clk 0:00:05]}  Qxb5 {[%clk 0:00:18]} 33. gxh7+ {[%clk 0:00:04]}  Kxh7 {[%clk 0:00:18]} 34. Qg5 {[%clk 0:00:04]}  Qe8 {[%clk 0:00:14]} 35. Qf5+ {[%clk 0:00:03]}  Qg6 {[%clk 0:00:13]} 36. Qf3 {[%clk 0:00:02]}  Rg1 {[%clk 0:00:11]} 37. Qb3 {[%clk 0:00:03]}  Qg5 {[%clk 0:00:09]} 38. Qf7+ {[%clk 0:00:03]}  Kh6 {[%clk 0:00:09]} 39. Qf8+ {[%clk 0:00:03]}  Qg7 {[%clk 0:00:08]} 40. Qd6+ {[%clk 0:00:03]}  Kh7 {[%clk 0:00:08]} 41. Qc5 {[%clk 0:00:02]}  Rxg2 {[%clk 0:00:08]} 42. Qxb4 {[%clk 0:00:02]}  Rg1 {[%clk 0:00:08]} 43. Qc4 {[%clk 0:00:02]}  h4 {[%clk 0:00:08]} 44. Qd3 {[%clk 0:00:02]}  Rg3 {[%clk 0:00:07]} 45. Qe2 {[%clk 0:00:02]}  Qg5 {[%clk 0:00:07]} 46. Qd3 {[%clk 0:00:02]}  Rxd3 {[%clk 0:00:06]} 47. Nxd3 {[%clk 0:00:02]}  h3 {[%clk 0:00:07]} 48. Nf2 {[%clk 0:00:02]}  Qg1+ {[%clk 0:00:07]} 49. Nd1 {[%clk 0:00:02]}  Qxd1# {[%clk 0:00:08]} 0-1


[Site "https://www.chess.com"]

[Event "Titled Tuesday Blitz February 07 Early 2023"]
[White "Larina, Maria"]
[Black "Skurikhin, Dmitrij"]
[WhiteFideId "24113182"]
[BlackFideId "4161297"]
[WhiteElo "1948"]
[BlackElo "2297"]
[Result "0-1"]
[Round "07"]
[TimeControl "180+2"]
[Date "2023.02.07"]
[WhiteClock "0:00:04"]
[BlackClock "0:01:01"]

1. e4 {[%clk 0:03:00]}  e5 {[%clk 0:02:59]} 2. Nf3 {[%clk 0:02:58]}  Nc6 {[%clk 0:02:59]} 3. Nc3 {[%clk 0:02:59]}  Nf6 {[%clk 0:02:58]} 4. Bb5 {[%clk 0:02:59]}  Bb4 {[%clk 0:02:57]} 5. O-O {[%clk 0:02:58]}  O-O {[%clk 0:02:56]} 6. d3 {[%clk 0:02:59]}  d6 {[%clk 0:02:56]} 7. Ne2 {[%clk 0:02:58]}  h6 {[%clk 0:02:55]} 8. c3 {[%clk 0:02:55]}  Ba5 {[%clk 0:02:55]} 9. Ng3 {[%clk 0:02:56]}  Ne7 {[%clk 0:02:54]} 10. d4 {[%clk 0:02:53]}  Ng6 {[%clk 0:02:51]} 11. Re1 {[%clk 0:02:42]}  Bg4 {[%clk 0:02:43]} 12. b4 {[%clk 0:02:16]}  Bb6 {[%clk 0:02:42]} 13. h3 {[%clk 0:02:00]}  Bxf3 {[%clk 0:02:37]} 14. gxf3 {[%clk 0:01:50]}  c6 {[%clk 0:02:36]} 15. Bf1 {[%clk 0:01:45]}  Nh7 {[%clk 0:02:15]} 16. Nf5 {[%clk 0:01:40]}  Ng5 {[%clk 0:02:12]} 17. Kh2 {[%clk 0:01:34]}  Qf6 {[%clk 0:02:04]} 18. Be3 {[%clk 0:01:26]}  d5 {[%clk 0:01:53]} 19. Bg2 {[%clk 0:01:12]}  exd4 {[%clk 0:01:42]} 20. cxd4 {[%clk 0:01:03]}  Bc7+ {[%clk 0:01:41]} 21. Ng3 {[%clk 0:00:53]}  Nh4 {[%clk 0:01:34]} 22. Bxg5 {[%clk 0:00:38]}  Qxg5 {[%clk 0:01:17]} 23. Qc1 {[%clk 0:00:19]}  Bf4 {[%clk 0:01:16]} 24. Qc3 {[%clk 0:00:17]}  h5 {[%clk 0:01:13]} 25. e5 {[%clk 0:00:17]}  Nxg2 {[%clk 0:01:11]} 26. Kxg2 {[%clk 0:00:14]}  Qh4 {[%clk 0:01:11]} 27. Rh1 {[%clk 0:00:11]}  Qg5 {[%clk 0:01:10]} 28. Kf1 {[%clk 0:00:09]}  h4 {[%clk 0:01:09]} 29. Ne2 {[%clk 0:00:09]}  Qf5 {[%clk 0:01:08]} 30. Nxf4 {[%clk 0:00:08]}  Qxf4 {[%clk 0:01:07]} 31. Qe3 {[%clk 0:00:09]}  Qf5 {[%clk 0:01:06]} 32. Ke2 {[%clk 0:00:08]}  a5 {[%clk 0:01:05]} 33. b5 {[%clk 0:00:06]}  cxb5 {[%clk 0:01:04]} 34. Qd2 {[%clk 0:00:06]}  Rfc8 {[%clk 0:01:02]} 35. Rag1 {[%clk 0:00:04]}  Rc2 {[%clk 0:01:01]} 0-1


[Site "https://www.chess.com"]

[Event "Titled Tuesday Blitz February 07 Early 2023"]
[White "Skliarov, Viktor"]
[Black "Abdilkhair, Abilmansur"]
[WhiteFideId "14106736"]
[BlackFideId "13716417"]
[WhiteElo "2383"]
[BlackElo "2268"]
[Result "0-1"]
[Round "07"]
[TimeControl "180+2"]
[Date "2023.02.07"]
[WhiteClock "0:00:05"]
[BlackClock "0:00:07"]

1. e4 {[%clk 0:02:50]}  e5 {[%clk 0:03:00]} 2. Nc3 {[%clk 0:02:49]}  Nc6 {[%clk 0:02:59]} 3. Bc4 {[%clk 0:02:46]}  Be7 {[%clk 0:02:58]} 4. d3 {[%clk 0:02:45]}  Nf6 {[%clk 0:02:57]} 5. a3 {[%clk 0:02:45]}  O-O {[%clk 0:02:56]} 6. h3 {[%clk 0:02:44]}  d6 {[%clk 0:02:54]} 7. Nge2 {[%clk 0:02:41]}  Be6 {[%clk 0:02:53]} 8. Nd5 {[%clk 0:02:41]}  Bxd5 {[%clk 0:02:41]} 9. exd5 {[%clk 0:02:40]}  Na5 {[%clk 0:02:21]} 10. Ba2 {[%clk 0:02:40]}  b6 {[%clk 0:02:21]} 11. O-O {[%clk 0:02:34]}  Nd7 {[%clk 0:02:15]} 12. b4 {[%clk 0:02:30]}  Nb7 {[%clk 0:02:14]} 13. Bb2 {[%clk 0:02:19]}  a5 {[%clk 0:02:12]} 14. Bc4 {[%clk 0:02:14]}  f5 {[%clk 0:02:06]} 15. Ng3 {[%clk 0:01:50]}  Bh4 {[%clk 0:01:58]} 16. Qf3 {[%clk 0:01:42]}  g6 {[%clk 0:01:52]} 17. Rfe1 {[%clk 0:01:34]}  Qg5 {[%clk 0:01:47]} 18. Nf1 {[%clk 0:01:30]}  Qf6 {[%clk 0:01:37]} 19. Bb5 {[%clk 0:01:16]}  Rf7 {[%clk 0:01:28]} 20. Bc6 {[%clk 0:01:14]}  Ra7 {[%clk 0:01:24]} 21. Bc3 {[%clk 0:01:13]}  Nd8 {[%clk 0:01:21]} 22. Bb5 {[%clk 0:01:09]}  Bg5 {[%clk 0:00:56]} 23. Nd2 {[%clk 0:00:51]}  Qg7 {[%clk 0:00:46]} 24. Nb3 {[%clk 0:00:45]}  a4 {[%clk 0:00:39]} 25. Nc1 {[%clk 0:00:39]}  Qh6 {[%clk 0:00:19]} 26. Rd1 {[%clk 0:00:31]}  Nf6 {[%clk 0:00:19]} 27. Ne2 {[%clk 0:00:17]}  e4 {[%clk 0:00:17]} 28. dxe4 {[%clk 0:00:17]}  fxe4 {[%clk 0:00:18]} 29. Qg3 {[%clk 0:00:15]}  e3 {[%clk 0:00:17]} 30. f4 {[%clk 0:00:15]}  Bh4 {[%clk 0:00:15]} 31. Qf3 {[%clk 0:00:15]}  Bf2+ {[%clk 0:00:15]} 32. Kh2 {[%clk 0:00:14]}  Ra8 {[%clk 0:00:12]} 33. Be1 {[%clk 0:00:10]}  Nh5 {[%clk 0:00:11]} 34. g3 {[%clk 0:00:10]}  Nxg3 {[%clk 0:00:08]} 35. Nxg3 {[%clk 0:00:10]}  Rxf4 {[%clk 0:00:08]} 36. Qg2 {[%clk 0:00:05]}  Bxe1 {[%clk 0:00:08]} 37. Rxe1 {[%clk 0:00:04]}  Rf2 {[%clk 0:00:08]} 38. Re2 {[%clk 0:00:05]}  Rxg2+ {[%clk 0:00:08]} 39. Kxg2 {[%clk 0:00:06]}  Nf7 {[%clk 0:00:08]} 40. Rae1 {[%clk 0:00:05]}  Ne5 {[%clk 0:00:06]} 41. Rxe3 {[%clk 0:00:05]}  Rf8 {[%clk 0:00:07]} 42. R3e2 {[%clk 0:00:04]}  Qg5 {[%clk 0:00:07]} 43. c4 {[%clk 0:00:03]}  h5 {[%clk 0:00:07]} 44. Kh2 {[%clk 0:00:03]}  Nf3+ {[%clk 0:00:07]} 45. Kg2 {[%clk 0:00:03]}  Nxe1+ {[%clk 0:00:08]} 46. Rxe1 {[%clk 0:00:04]}  Qd2+ {[%clk 0:00:07]} 47. Re2 {[%clk 0:00:04]}  Qd3 {[%clk 0:00:08]} 48. Bd7 {[%clk 0:00:04]}  h4 {[%clk 0:00:08]} 49. Be6+ {[%clk 0:00:04]}  Kg7 {[%clk 0:00:07]} 50. Re4 {[%clk 0:00:04]}  Qxg3+ {[%clk 0:00:07]} 51. Kh1 {[%clk 0:00:05]}  Rf1# {[%clk 0:00:07]} 0-1


[Site "https://www.chess.com"]

[Event "Titled Tuesday Blitz February 07 Early 2023"]
[White "Royal, Shreyas"]
[Black "Mazurkiewicz, Michal"]
[WhiteFideId "448869"]
[BlackFideId "1124943"]
[WhiteElo "2438"]
[BlackElo "2145"]
[Result "0-1"]
[Round "07"]
[TimeControl "180+2"]
[Date "2023.02.07"]
[WhiteClock "0:01:15"]
[BlackClock "0:00:08"]

1. e4 {[%clk 0:03:00]}  d6 {[%clk 0:02:59]} 2. Nf3 {[%clk 0:03:00]}  Nf6 {[%clk 0:02:59]} 3. Nc3 {[%clk 0:03:00]}  c6 {[%clk 0:02:59]} 4. d4 {[%clk 0:03:00]}  Bg4 {[%clk 0:02:59]} 5. Bc4 {[%clk 0:03:00]}  e6 {[%clk 0:02:59]} 6. h3 {[%clk 0:03:01]}  Bh5 {[%clk 0:02:58]} 7. Be3 {[%clk 0:03:00]}  d5 {[%clk 0:02:58]} 8. Bd3 {[%clk 0:03:00]}  Be7 {[%clk 0:02:53]} 9. Qd2 {[%clk 0:02:59]}  Bg6 {[%clk 0:02:47]} 10. e5 {[%clk 0:02:52]}  Nfd7 {[%clk 0:02:47]} 11. h4 {[%clk 0:02:47]}  c5 {[%clk 0:02:46]} 12. h5 {[%clk 0:02:45]}  Bxd3 {[%clk 0:02:46]} 13. Qxd3 {[%clk 0:02:46]}  Nc6 {[%clk 0:02:46]} 14. h6 {[%clk 0:02:40]}  g6 {[%clk 0:02:46]} 15. Nb5 {[%clk 0:02:39]}  Qa5+ {[%clk 0:02:31]} 16. Bd2 {[%clk 0:02:33]}  Qb6 {[%clk 0:01:37]} 17. a4 {[%clk 0:02:30]}  a6 {[%clk 0:01:31]} 18. a5 {[%clk 0:02:28]}  Qxb5 {[%clk 0:01:30]} 19. Qc3 {[%clk 0:02:24]}  cxd4 {[%clk 0:01:26]} 20. Nxd4 {[%clk 0:02:25]}  Bb4 {[%clk 0:01:22]} 21. Nxb5 {[%clk 0:02:24]}  Bxc3 {[%clk 0:01:19]} 22. Nd6+ {[%clk 0:02:11]}  Ke7 {[%clk 0:01:18]} 23. Bxc3 {[%clk 0:02:12]}  d4 {[%clk 0:01:10]} 24. Bd2 {[%clk 0:02:11]}  Ndxe5 {[%clk 0:01:10]} 25. Nxb7 {[%clk 0:02:11]}  Rab8 {[%clk 0:01:10]} 26. Nc5 {[%clk 0:02:10]}  Rxb2 {[%clk 0:01:10]} 27. Nxa6 {[%clk 0:02:03]}  Rxc2 {[%clk 0:01:09]} 28. Nb4 {[%clk 0:02:01]}  Nxb4 {[%clk 0:00:44]} 29. Bxb4+ {[%clk 0:02:02]}  Kf6 {[%clk 0:00:40]} 30. O-O {[%clk 0:01:55]}  Nc6 {[%clk 0:00:34]} 31. Bd6 {[%clk 0:01:51]}  e5 {[%clk 0:00:26]} 32. a6 {[%clk 0:01:34]}  Ke6 {[%clk 0:00:27]} 33. Bc7 {[%clk 0:01:34]}  Ra8 {[%clk 0:00:18]} 34. Bb6 {[%clk 0:01:31]}  Rb2 {[%clk 0:00:16]} 35. Bc7 {[%clk 0:01:27]}  Kd7 {[%clk 0:00:15]} 36. Ba5 {[%clk 0:01:23]}  Rxa6 {[%clk 0:00:12]} 37. Bc3 {[%clk 0:01:17]}  Rxa1 {[%clk 0:00:09]} 38. Bxb2 {[%clk 0:01:18]}  Rxf1+ {[%clk 0:00:10]} 39. Kxf1 {[%clk 0:01:19]}  Kd6 {[%clk 0:00:10]} 40. Ke2 {[%clk 0:01:19]}  Kd5 {[%clk 0:00:11]} 41. f3 {[%clk 0:01:19]}  f5 {[%clk 0:00:11]} 42. Kd2 {[%clk 0:01:18]}  e4 {[%clk 0:00:12]} 43. fxe4+ {[%clk 0:01:18]}  fxe4 {[%clk 0:00:13]} 44. Ba3 {[%clk 0:01:18]}  Ne5 {[%clk 0:00:12]} 45. Bf8 {[%clk 0:01:17]}  e3+ {[%clk 0:00:12]} 46. Ke2 {[%clk 0:01:17]}  Ke4 {[%clk 0:00:13]} 47. Bc5 {[%clk 0:01:17]}  d3+ {[%clk 0:00:13]} 48. Kd1 {[%clk 0:01:18]}  Nc4 {[%clk 0:00:12]} 49. Ke1 {[%clk 0:01:18]}  Kf4 {[%clk 0:00:08]} 50. Bd4 {[%clk 0:01:17]}  Kg3 {[%clk 0:00:08]} 51. Kf1 {[%clk 0:01:16]}  d2 {[%clk 0:00:08]} 52. Ke2 {[%clk 0:01:16]}  Kxg2 {[%clk 0:00:08]} 53. Bf6 {[%clk 0:01:16]}  Kh3 {[%clk 0:00:07]} 54. Bg7 {[%clk 0:01:16]}  Kg4 {[%clk 0:00:07]} 55. Bf6 {[%clk 0:01:16]}  Kf5 {[%clk 0:00:07]} 56. Bc3 {[%clk 0:01:16]}  Ke4 {[%clk 0:00:08]} 57. Bg7 {[%clk 0:01:16]}  g5 {[%clk 0:00:07]} 58. Bf6 {[%clk 0:01:16]}  g4 {[%clk 0:00:07]} 59. Bh4 {[%clk 0:01:16]}  Ne5 {[%clk 0:00:07]} 60. Bg3 {[%clk 0:01:16]}  Nf3 {[%clk 0:00:07]} 61. Bc7 {[%clk 0:01:16]}  Nd4+ {[%clk 0:00:07]} 62. Kd1 {[%clk 0:01:15]}  Kd3 {[%clk 0:00:07]} 63. Bf4 {[%clk 0:01:15]}  e2# {[%clk 0:00:08]} 0-1


[Site "https://www.chess.com"]

[Event "Titled Tuesday Blitz February 07 Early 2023"]
[White "Dinu, Dumitru-Daniel"]
[Black "Cella, Glaucio Dalla Cortt"]
[WhiteFideId "1208403"]
[BlackFideId "2119455"]
[WhiteElo "2203"]
[BlackElo "1894"]
[Result "0-1"]
[Round "07"]
[TimeControl "180+2"]
[Date "2023.02.07"]
[WhiteClock "0:00:15"]
[BlackClock "0:00:30"]

1. e4 {[%clk 0:03:00]}  c5 {[%clk 0:03:00]} 2. b3 {[%clk 0:02:59]}  e6 {[%clk 0:02:59]} 3. Bb2 {[%clk 0:02:58]}  Nc6 {[%clk 0:03:00]} 4. Bb5 {[%clk 0:02:56]}  Nd4 {[%clk 0:02:54]} 5. Bd3 {[%clk 0:02:44]}  d5 {[%clk 0:02:54]} 6. exd5 {[%clk 0:02:43]}  exd5 {[%clk 0:02:52]} 7. Ne2 {[%clk 0:02:41]}  Ne6 {[%clk 0:02:48]} 8. O-O {[%clk 0:02:40]}  Nf6 {[%clk 0:02:47]} 9. Ng3 {[%clk 0:02:35]}  Bd6 {[%clk 0:02:47]} 10. Nf5 {[%clk 0:02:34]}  Bc7 {[%clk 0:02:41]} 11. Bb5+ {[%clk 0:02:17]}  Kf8 {[%clk 0:02:37]} 12. d4 {[%clk 0:02:13]}  g6 {[%clk 0:02:36]} 13. Ne3 {[%clk 0:02:07]}  Nxd4 {[%clk 0:02:37]} 14. Bxd4 {[%clk 0:01:58]}  cxd4 {[%clk 0:02:37]} 15. Qxd4 {[%clk 0:01:58]}  Kg7 {[%clk 0:02:38]} 16. Nc3 {[%clk 0:01:55]}  Qd6 {[%clk 0:02:34]} 17. g3 {[%clk 0:01:52]}  Bb6 {[%clk 0:02:35]} 18. Qd2 {[%clk 0:01:47]}  a6 {[%clk 0:02:34]} 19. Be2 {[%clk 0:01:46]}  Rd8 {[%clk 0:02:13]} 20. Bf3 {[%clk 0:01:36]}  Ba5 {[%clk 0:01:58]} 21. a3 {[%clk 0:01:27]}  d4 {[%clk 0:01:55]} 22. Nc4 {[%clk 0:01:25]}  Bxc3 {[%clk 0:01:52]} 23. Nxd6 {[%clk 0:01:16]}  Bxd2 {[%clk 0:01:52]} 24. Nxb7 {[%clk 0:01:16]}  Bxb7 {[%clk 0:01:49]} 25. Bxb7 {[%clk 0:01:17]}  Rab8 {[%clk 0:01:50]} 26. Bxa6 {[%clk 0:01:17]}  Bc3 {[%clk 0:01:35]} 27. Ra2 {[%clk 0:01:16]}  Rd6 {[%clk 0:01:26]} 28. Bd3 {[%clk 0:01:15]}  Ra8 {[%clk 0:01:23]} 29. a4 {[%clk 0:01:14]}  Nd5 {[%clk 0:01:22]} 30. Be4 {[%clk 0:01:12]}  Re8 {[%clk 0:01:19]} 31. Bxd5 {[%clk 0:01:06]}  Rxd5 {[%clk 0:01:18]} 32. Rd1 {[%clk 0:01:07]}  Re1+ {[%clk 0:01:14]} 33. Rxe1 {[%clk 0:01:07]}  Bxe1 {[%clk 0:01:15]} 34. Ra1 {[%clk 0:01:07]}  Bc3 {[%clk 0:01:14]} 35. Rd1 {[%clk 0:01:07]}  Kf6 {[%clk 0:01:11]} 36. Kg2 {[%clk 0:01:06]}  Ke5 {[%clk 0:01:11]} 37. Rd3 {[%clk 0:01:03]}  f5 {[%clk 0:01:09]} 38. Kf3 {[%clk 0:00:51]}  g5 {[%clk 0:01:07]} 39. h4 {[%clk 0:00:50]}  g4+ {[%clk 0:01:05]} 40. Kg2 {[%clk 0:00:50]}  Kd6 {[%clk 0:01:03]} 41. f3 {[%clk 0:00:41]}  h5 {[%clk 0:01:00]} 42. fxg4 {[%clk 0:00:41]}  fxg4 {[%clk 0:01:00]} 43. Rd1 {[%clk 0:00:41]}  Kc5 {[%clk 0:00:57]} 44. Rf1 {[%clk 0:00:36]}  Re5 {[%clk 0:00:55]} 45. Rf2 {[%clk 0:00:34]}  Be1 {[%clk 0:00:51]} 46. Rf7 {[%clk 0:00:28]}  Re2+ {[%clk 0:00:46]} 47. Kf1 {[%clk 0:00:27]}  Re5 {[%clk 0:00:44]} 48. Kg2 {[%clk 0:00:27]}  Kb4 {[%clk 0:00:40]} 49. Rc7 {[%clk 0:00:26]}  Bc3 {[%clk 0:00:35]} 50. Rc4+ {[%clk 0:00:19]}  Ka3 {[%clk 0:00:34]} 51. Kf2 {[%clk 0:00:14]}  Kb2 {[%clk 0:00:33]} 52. b4 {[%clk 0:00:15]}  Kxc2 {[%clk 0:00:33]} 53. a5 {[%clk 0:00:15]}  d3 {[%clk 0:00:31]} 54. b5 {[%clk 0:00:15]}  d2 {[%clk 0:00:30]} 0-1


[Site "https://www.chess.com"]

[Event "Titled Tuesday Blitz February 07 Early 2023"]
[White "Mogirzan, Matei-Valeriu"]
[Black "Omelja, Artem"]
[WhiteFideId "1257455"]
[BlackFideId "14119846"]
[WhiteElo "1813"]
[BlackElo "2446"]
[Result "0-1"]
[Round "07"]
[TimeControl "180+2"]
[Date "2023.02.07"]
[WhiteClock "0:00:02"]
[BlackClock "0:00:47"]

1. Nc3 {[%clk 0:02:53]}  d5 {[%clk 0:02:59]} 2. d4 {[%clk 0:02:48]}  Nf6 {[%clk 0:02:58]} 3. g4 {[%clk 0:02:37]}  Bxg4 {[%clk 0:02:54]} 4. f3 {[%clk 0:02:37]}  Bh5 {[%clk 0:02:54]} 5. e4 {[%clk 0:02:35]}  dxe4 {[%clk 0:02:53]} 6. Bf4 {[%clk 0:02:33]}  c6 {[%clk 0:02:53]} 7. Qd2 {[%clk 0:02:29]}  exf3 {[%clk 0:02:52]} 8. O-O-O {[%clk 0:02:12]}  f2 {[%clk 0:02:43]} 9. Nge2 {[%clk 0:02:12]}  Bf3 {[%clk 0:02:43]} 10. Bh3 {[%clk 0:02:06]}  Bxh1 {[%clk 0:02:42]} 11. Rxh1 {[%clk 0:02:07]}  e6 {[%clk 0:02:41]} 12. Rf1 {[%clk 0:02:01]}  Bd6 {[%clk 0:02:41]} 13. Bg5 {[%clk 0:01:59]}  Nbd7 {[%clk 0:02:40]} 14. Rxf2 {[%clk 0:01:56]}  Qa5 {[%clk 0:02:39]} 15. Bg2 {[%clk 0:01:24]}  h6 {[%clk 0:02:30]} 16. Bh4 {[%clk 0:01:19]}  O-O-O {[%clk 0:02:24]} 17. Kb1 {[%clk 0:01:17]}  Rhf8 {[%clk 0:01:59]} 18. Rf3 {[%clk 0:01:02]}  g5 {[%clk 0:01:55]} 19. Bf2 {[%clk 0:00:55]}  Nd5 {[%clk 0:01:53]} 20. a3 {[%clk 0:00:44]}  N7b6 {[%clk 0:01:48]} 21. b4 {[%clk 0:00:41]}  Nc4 {[%clk 0:01:38]} 22. Qd3 {[%clk 0:00:33]}  Nxa3+ {[%clk 0:01:31]} 23. Kc1 {[%clk 0:00:32]}  Qxb4 {[%clk 0:01:30]} 24. Nxd5 {[%clk 0:00:28]}  Qb1+ {[%clk 0:01:23]} 25. Kd2 {[%clk 0:00:27]}  exd5 {[%clk 0:01:23]} 26. Nc3 {[%clk 0:00:16]}  Qa1 {[%clk 0:01:17]} 27. Rf6 {[%clk 0:00:08]}  Nc4+ {[%clk 0:01:07]} 28. Ke2 {[%clk 0:00:06]}  Rfe8+ {[%clk 0:01:01]} 29. Kf3 {[%clk 0:00:07]}  Kb8 {[%clk 0:00:50]} 30. Qf5 {[%clk 0:00:02]}  Qxc3+ {[%clk 0:00:47]} 31. Kg4 {[%clk 0:00:02]} 0-1


[Site "https://www.chess.com"]

[Event "Titled Tuesday Blitz February 07 Early 2023"]
[White "Seletsky, Grigory"]
[Black "Silvestre, Christian"]
[WhiteFideId "14112191"]
[BlackFideId "30956269"]
[WhiteElo "2259"]
[BlackElo "1942"]
[Result "0-1"]
[Round "07"]
[TimeControl "180+2"]
[Date "2023.02.07"]
[WhiteClock "0:00:11"]
[BlackClock "0:01:15"]

1. e4 {[%clk 0:02:55]}  c5 {[%clk 0:02:59]} 2. Nc3 {[%clk 0:02:53]}  e6 {[%clk 0:02:59]} 3. f4 {[%clk 0:02:53]}  d5 {[%clk 0:02:59]} 4. Nf3 {[%clk 0:02:53]}  dxe4 {[%clk 0:02:58]} 5. Nxe4 {[%clk 0:02:52]}  Nf6 {[%clk 0:02:59]} 6. d3 {[%clk 0:02:52]}  Nxe4 {[%clk 0:02:58]} 7. dxe4 {[%clk 0:02:53]}  Qxd1+ {[%clk 0:02:58]} 8. Kxd1 {[%clk 0:02:53]}  Nc6 {[%clk 0:02:58]} 9. c3 {[%clk 0:02:50]}  Bd7 {[%clk 0:02:57]} 10. Bd3 {[%clk 0:02:51]}  O-O-O {[%clk 0:02:56]} 11. Ke2 {[%clk 0:02:51]}  Na5 {[%clk 0:02:55]} 12. Be3 {[%clk 0:02:51]}  Kb8 {[%clk 0:02:54]} 13. Rhd1 {[%clk 0:02:47]}  Be7 {[%clk 0:02:53]} 14. Nd2 {[%clk 0:02:44]}  Ba4 {[%clk 0:02:48]} 15. b3 {[%clk 0:02:43]}  Bc6 {[%clk 0:02:35]} 16. g3 {[%clk 0:02:40]}  b6 {[%clk 0:02:35]} 17. e5 {[%clk 0:02:38]}  h5 {[%clk 0:02:33]} 18. h4 {[%clk 0:02:33]}  Rd7 {[%clk 0:02:29]} 19. Bc2 {[%clk 0:02:17]}  Rhd8 {[%clk 0:02:27]} 20. Ne4 {[%clk 0:02:18]}  Rxd1 {[%clk 0:02:26]} 21. Rxd1 {[%clk 0:02:16]}  Rxd1 {[%clk 0:02:25]} 22. Kxd1 {[%clk 0:02:17]}  g6 {[%clk 0:02:20]} 23. Ke2 {[%clk 0:02:14]}  Nb7 {[%clk 0:02:18]} 24. c4 {[%clk 0:02:13]}  Nd8 {[%clk 0:02:14]} 25. Ng5 {[%clk 0:01:58]}  Bxg5 {[%clk 0:02:12]} 26. hxg5 {[%clk 0:01:59]}  Bg2 {[%clk 0:02:07]} 27. a3 {[%clk 0:01:56]}  Nc6 {[%clk 0:02:05]} 28. Kd3 {[%clk 0:01:56]}  Bh3 {[%clk 0:02:00]} 29. Kc3 {[%clk 0:01:55]}  a5 {[%clk 0:01:56]} 30. Be4 {[%clk 0:01:55]}  Kc7 {[%clk 0:01:56]} 31. Bf3 {[%clk 0:01:14]}  Bg4 {[%clk 0:01:50]} 32. Bg2 {[%clk 0:01:10]}  Bd1 {[%clk 0:01:44]} 33. Be4 {[%clk 0:01:06]}  Bg4 {[%clk 0:01:43]} 34. Kb2 {[%clk 0:01:02]}  Bf5 {[%clk 0:01:41]} 35. Bf3 {[%clk 0:01:01]}  Bg4 {[%clk 0:01:41]} 36. Be4 {[%clk 0:00:58]}  Bf5 {[%clk 0:01:38]} 37. Bg2 {[%clk 0:00:58]}  Bd3 {[%clk 0:01:36]} 38. Kc3 {[%clk 0:00:47]}  Be2 {[%clk 0:01:35]} 39. Bxc6 {[%clk 0:00:46]}  Kxc6 {[%clk 0:01:35]} 40. b4 {[%clk 0:00:46]}  axb4+ {[%clk 0:01:35]} 41. axb4 {[%clk 0:00:46]}  cxb4+ {[%clk 0:01:35]} 42. Kxb4 {[%clk 0:00:47]}  b5 {[%clk 0:01:31]} 43. cxb5+ {[%clk 0:00:46]}  Bxb5 {[%clk 0:01:31]} 44. Bc1 {[%clk 0:00:27]}  Ba6 {[%clk 0:01:26]} 45. Kc3 {[%clk 0:00:26]}  Kd5 {[%clk 0:01:26]} 46. Kd2 {[%clk 0:00:26]}  Ke4 {[%clk 0:01:27]} 47. Bb2 {[%clk 0:00:14]}  Kf3 {[%clk 0:01:26]} 48. Bd4 {[%clk 0:00:13]}  Bc4 {[%clk 0:01:20]} 49. Ke1 {[%clk 0:00:11]}  Kxg3 {[%clk 0:01:18]} 50. Be3 {[%clk 0:00:11]}  Kf3 {[%clk 0:01:15]} 51. Bd2 {[%clk 0:00:11]}  h4 {[%clk 0:01:15]} 0-1


[Site "https://www.chess.com"]

[Event "Titled Tuesday Blitz February 07 Early 2023"]
[White "Manukian, Artak"]
[Black "Antonio, Jorge Carlos"]
[WhiteFideId "13301373"]
[BlackFideId "113190"]
[WhiteElo "2196"]
[BlackElo "2277"]
[Result "1-0"]
[Round "07"]
[TimeControl "180+2"]
[Date "2023.02.07"]
[WhiteClock "0:00:45"]
[BlackClock "0:00:15"]

1. e4 {[%clk 0:02:56]}  d6 {[%clk 0:03:00]} 2. d4 {[%clk 0:02:55]}  g6 {[%clk 0:03:00]} 3. c4 {[%clk 0:02:55]}  Bg7 {[%clk 0:03:00]} 4. Nc3 {[%clk 0:02:55]}  Nf6 {[%clk 0:02:58]} 5. f3 {[%clk 0:02:53]}  O-O {[%clk 0:02:48]} 6. Bg5 {[%clk 0:02:54]}  c5 {[%clk 0:02:39]} 7. d5 {[%clk 0:02:53]}  a6 {[%clk 0:02:28]} 8. a4 {[%clk 0:02:53]}  h6 {[%clk 0:02:20]} 9. Be3 {[%clk 0:02:52]}  Nbd7 {[%clk 0:02:15]} 10. Qd2 {[%clk 0:02:51]}  Rb8 {[%clk 0:02:14]} 11. Bxh6 {[%clk 0:02:50]}  Ne8 {[%clk 0:02:10]} 12. g4 {[%clk 0:02:45]}  Qa5 {[%clk 0:01:31]} 13. h4 {[%clk 0:02:30]}  b5 {[%clk 0:01:18]} 14. cxb5 {[%clk 0:02:29]}  axb5 {[%clk 0:01:12]} 15. Bxb5 {[%clk 0:02:22]}  Ne5 {[%clk 0:00:57]} 16. Bxg7 {[%clk 0:02:11]}  Kxg7 {[%clk 0:00:56]} 17. h5 {[%clk 0:01:29]}  Rh8 {[%clk 0:00:37]} 18. h6+ {[%clk 0:01:20]}  Kh7 {[%clk 0:00:35]} 19. g5 {[%clk 0:01:19]}  Rf8 {[%clk 0:00:34]} 20. f4 {[%clk 0:01:15]}  Nd7 {[%clk 0:00:30]} 21. Nf3 {[%clk 0:01:12]}  f6 {[%clk 0:00:30]} 22. f5 {[%clk 0:01:04]}  gxf5 {[%clk 0:00:26]} 23. g6+ {[%clk 0:01:01]}  Kxg6 {[%clk 0:00:24]} 24. h7 {[%clk 0:01:01]}  Rh8 {[%clk 0:00:21]} 25. Qh6+ {[%clk 0:00:51]}  Kf7 {[%clk 0:00:20]} 26. Rg1 {[%clk 0:00:51]}  Ne5 {[%clk 0:00:15]} 27. Qh5+ {[%clk 0:00:45]}  Kf8 {[%clk 0:00:15]} 28. Qxe8# {[%clk 0:00:45]} 1-0


[Site "https://www.chess.com"]